bitfinex-derivatives/quotes_SOLF0:USTF0_20250117
["timestamp","ask_amount","ask_price","bid_price","bid_amount"]
[1737121957038,2.9537,219.91,219.78,5.9878]
[1737121957237,184.94578544,220.04,219.79,17.47351912]
[1737121957427,4.5492,219.85,219.81,4.55]
[1737121957631,17.47351912,219.93,219.75,1.4789]
[1737121957833,17.47351912,219.93,219.76,5.18]
[1737121958538,1.4364,219.92,219.76,5.18]
[1737121958932,17.47351912,219.89,219.76,5.18]
[1737121959638,4.55,219.82,219.77,4.5508]
[1737121959839,17.47351912,219.89,219.75,6.6589]
[1737121960537,17.47351912,219.89,219.76,4.551]
[1737121961237,17.47351912,219.89,219.75,6.6589]
[1737121961437,17.47351912,219.89,219.78,4.5506]
[1737121963141,4.5494,219.84,219.78,4.5506]
[1737121963347,10.9325259,219.89,219.78,4.5506]
[1737121963848,4.5499,219.82,219.78,4.5506]
[1737121964048,4.5499,219.82,219.75,17.5914259]
[1737121964752,4.5495,219.84,219.75,17.5914259]
[1737121965143,12.3689259,219.92,219.78,10.9325259]
[1737121965347,4.549,219.87,219.78,10.9325259]
[1737121965546,12.3689259,219.92,219.78,10.9325259]
[1737121965745,4.5485,219.89,219.85,4.5491]
[1737121967047,4.5485,219.89,219.81,10.9325259]
[1737121967344,4.5489,219.87,219.81,10.9325259]
[1737121967955,4.5491,219.86,219.82,4.5496]
[1737121968642,10.9325259,219.92,219.78,10.9325259]
[1737121968956,4.5493,219.85,219.78,16.0725259]
[1737121969253,4.5493,219.85,219.8,4.5502]
[1737121969648,10.9325259,219.92,219.78,16.0725259]
[1737121969847,10.9325259,219.92,219.81,4.55]
[1737121970648,4.549,219.87,219.82,4.5498]
[1737121970850,10.9325259,219.92,219.82,4.5498]
[1737121971350,4.5484,219.89,219.82,4.5498]
[1737121971552,10.9325259,219.92,219.82,4.5498]
[1737121972049,4.549,219.87,219.82,4.5498]
[1737121973349,4.549,219.87,219.83,4.5496]
[1737121973851,4.5481,219.91,219.86,4.5489]
[1737121974049,10.9325259,219.95,219.81,10.9325259]
[1737121974349,4.5479,219.92,219.88,4.5485]
[1737121974547,10.9325259,219.95,219.81,10.9325259]
[1737121974947,4.5478,219.92,219.81,10.9325259]
[1737121975555,4.5478,219.92,219.87,4.5486]
[1737121975853,4.5481,219.91,219.87,4.5486]
[1737121976049,10.9325259,219.95,219.81,10.9325259]
[1737121976442,4.5484,219.9,219.81,10.9325259]
[1737121977752,4.5484,219.89,219.85,4.5492]
[1737121978252,10.9325259,219.95,219.81,10.9325259]
[1737121978556,10.9325259,219.92,219.75,1.4789]
[1737121978748,10.9325259,219.89,219.75,17.5114259]
[1737121978948,4.5494,219.84,219.75,17.5114259]
[1737121979443,10.9325259,219.89,219.75,17.5114259]
[1737121979645,4.5497,219.83,219.79,4.5504]
[1737121979851,10.9325259,219.89,219.75,17.5114259]
[1737121980049,4.549,219.86,219.82,4.5496]
[1737121980649,4.5485,219.89,219.85,4.5491]
[1737121981043,10.9325259,219.92,219.85,4.5491]
[1737121981452,4.5485,219.89,219.82,4.5498]
[1737121981754,10.9325259,219.92,219.82,4.5498]
[1737121982152,4.5488,219.87,219.82,4.5498]
[1737121983652,4.5485,219.89,219.79,10.9325259]
[1737121983853,10.9325259,219.95,219.82,10.9325259]
[1737121984049,4.5479,219.92,219.87,4.5488]
[1737121984253,4.5479,219.92,219.82,10.9325259]
[1737121984451,10.9325259,219.95,219.82,5.08]
[1737121985151,4.548,219.91,219.86,4.5488]
[1737121986158,4.5482,219.9,219.86,4.5488]
[1737121986354,10.9325259,219.95,219.85,4.5492]
[1737121986556,10.9325259,219.95,219.82,6.629]
[1737121986758,4.5487,219.88,219.81,10.9325259]
[1737121987059,4.5487,219.88,219.83,4.5494]
[1737121987556,4.5487,219.88,219.84,4.5494]
[1737121989359,10.9325259,219.92,219.84,4.5494]
[1737121989657,4.5488,219.87,219.84,4.5494]
[1737121990457,4.5488,219.87,219.81,10.9325259]
[1737121990657,4.5488,219.87,219.83,4.5496]
[1737121990860,10.9325259,219.92,219.83,4.5496]
[1737121991354,10.9325259,219.92,219.79,5.06]
[1737121991558,4.5494,219.84,219.81,4.5499]
[1737121992961,10.9325259,219.86,219.75,1.4789]
[1737121993257,10.9325259,219.83,219.7,15.9925259]
[1737121993457,4.5504,219.8,219.73,4.5515]
[1737121993662,10.9325259,219.83,219.73,4.5515]
[1737121994562,4.5506,219.79,219.73,4.5515]
[1737121994853,4.5502,219.81,219.75,4.5511]
[1737121995059,4.5502,219.81,219.73,10.9325259]
[1737121995455,4.5499,219.82,219.73,10.9325259]
[1737121996054,4.5499,219.82,219.78,4.5506]
[1737121996457,4.5499,219.82,219.73,10.9325259]
[1737121996852,4.5499,219.82,219.77,4.5508]
[1737121997256,4.5499,219.82,219.76,10.9325259]
[1737121997464,4.5496,219.84,219.79,4.5502]
[1737121997962,4.5496,219.83,219.79,4.5502]
[1737121998870,4.5494,219.84,219.79,4.5502]
[1737121999158,1.4423,219.9,219.82,4.5498]
[1737121999363,4.5489,219.87,219.82,4.5498]
[1737121999760,1.4423,219.9,219.82,4.5498]
[1737122000357,10.9325259,219.92,219.84,4.5494]
[1737122000562,184.94578544,219.94,219.82,10.9325259]
[1737122000762,4.548,219.91,219.82,10.9325259]
[1737122001064,4.548,219.91,219.83,4.5494]
[1737122002064,10.9325259,219.95,219.83,4.5494]
[1737122002255,10.9325259,219.95,219.8,5.04]
[1737122002456,10.9325259,219.92,219.78,12.3526259]
[1737122002663,4.5494,219.85,219.78,12.3526259]
[1737122003258,10.9325259,219.92,219.78,12.3526259]
[1737122003560,4.5495,219.84,219.78,1.4201]
[1737122003756,450.0,219.82,219.78,1.4201]
[1737122004165,450.0,219.82,219.78,5.9707]
[1737122004762,447.668,219.82,219.78,12.3526259]
[1737122005867,447.668,219.82,219.8,4.5501]
[1737122006364,198.88753525,219.82,219.81,15.4825259]
[1737122006573,20.91023334,219.82,219.81,40.0550518]
[1737122006767,184.94578544,220.0,219.81,35.5050518]
[1737122006967,4.5462,220.0,219.92,15.4801259]
[1737122007167,4.5462,220.0,219.93,5.06]
[1737122007469,4.5462,220.0,219.93,9.6075]
[1737122008565,4.5462,220.0,219.93,5.06]
[1737122008967,4.5463,219.99,219.93,5.06]
[1737122009271,2.9055,220.06,219.93,5.06]
[1737122009272,10.9325259,220.02,219.93,5.06]
[1737122009666,4.5467,219.97,219.93,5.06]
[1737122010371,4.547,219.96,219.93,5.06]
[1737122010574,10.9325259,220.02,219.93,5.06]
[1737122011170,10.9325259,219.99,219.93,5.06]
[1737122011668,4.5473,219.94,219.93,5.06]
[1737122012064,10.9325259,219.99,219.86,4.5489]
[1737122012262,10.9325259,219.99,219.88,5.04]
[1737122013273,10.9325259,219.96,219.88,5.04]
[1737122013465,4.5484,219.89,219.88,5.04]
[1737122014870,4.5488,219.87,219.82,5.45943531]
[1737122015170,4.5488,219.87,219.82,5.92983531]
[1737122015371,4.5488,219.87,219.83,4.5496]
[1737122016473,4.5492,219.86,219.82,10.47963531]
[1737122016770,10.9325259,219.9,219.82,5.92983531]
[1737122016974,10.9325259,219.9,219.82,5.02]
[1737122017172,10.9325259,219.9,219.78,4.5504]
[1737122017374,10.9325259,219.87,219.75,8.84193971]
[1737122017975,4.55,219.82,219.77,4.5507]
[1737122018681,10.9325259,219.87,219.77,4.5507]
[1737122018981,4.5496,219.84,219.77,4.5507]
[1737122019177,10.9325259,219.93,219.77,10.9325259]
[1737122019376,1.4113,219.95,219.8,10.9325259]
[1737122019584,1.4113,219.95,219.83,10.9325259]
[1737122019878,1.4113,219.95,219.84,5.02]
[1737122020282,1.4113,219.95,219.86,10.9325259]
[1737122020479,4.5473,219.94,219.88,4.5484]
[1737122020676,4.5473,219.94,219.86,10.9325259]
[1737122021074,1.4446,219.97,219.9,4.5481]
[1737122021275,1.4596,219.98,219.86,10.9325259]
[1737122021682,4.5467,219.98,219.86,10.9325259]
[1737122022077,10.9325259,220.02,219.9,10.9325259]
[1737122022479,4.5469,219.97,219.92,4.5476]
[1737122022980,10.9325259,220.02,219.92,4.5476]
[1737122024086,4.5468,219.97,219.92,4.5476]
[1737122025986,4.547,219.96,219.92,4.5476]
[1737122027080,4.5471,219.95,219.9,4.548]
[1737122028688,4.5471,219.95,219.91,4.5478]
[1737122028888,4.5474,219.94,219.91,4.5478]
[1737122029787,4.5474,219.94,219.9,4.5481]
[1737122030386,4.5474,219.94,219.91,4.5479]
[1737122032691,4.5472,219.95,219.92,4.5477]
[1737122033092,10.9325259,219.99,219.88,5.0]
[1737122033294,4.5475,219.94,219.9,4.5479]
[1737122034088,10.9325259,219.96,219.85,4.5491]
[1737122034287,1.4585,219.93,219.83,10.9325259]
[1737122034688,4.5486,219.88,219.83,10.9325259]
[1737122036195,4.5486,219.88,219.85,4.5491]
[1737122036590,1.4585,219.93,219.83,10.9325259]
[1737122036794,1.4585,219.93,219.88,4.5485]
[1737122037495,4.5479,219.92,219.88,4.5485]
[1737122037695,1.4343,220.03,219.89,10.9325259]
[1737122037994,2.9009,220.03,219.93,10.9325259]
[1737122038195,2.9009,220.03,219.99,4.5462]
[1737122039393,10.9325259,220.11,220.03,4.5455]
[1737122039698,4.5446,220.08,219.99,10.9325259]
[1737122039997,4.5446,220.08,220.02,4.5457]
[1737122040196,10.9325259,220.11,220.02,4.5457]
[1737122040998,4.5447,220.07,220.01,4.5459]
[1737122041298,10.9325259,220.11,219.96,10.9325259]
[1737122041498,4.5447,220.07,220.0,4.546]
[1737122041698,10.9325259,220.11,220.0,4.546]
[1737122041995,10.9325259,220.11,219.99,10.9325259]
[1737122042395,4.5444,220.09,220.03,4.5454]
[1737122042596,10.9325259,220.11,220.03,4.5454]
[1737122043603,10.9325259,220.11,219.98,4.5465]
[1737122043799,10.9325259,220.08,219.98,4.5465]
[1737122044899,10.9325259,220.11,219.96,15.8925259]
[1737122045403,4.4428,220.13,219.99,10.9325259]
[1737122046803,4.4428,220.13,220.04,4.5451]
[1737122047303,4.5447,220.07,220.02,4.5457]
[1737122047502,10.9325259,220.11,219.99,10.9325259]
[1737122048099,10.9325259,220.08,219.96,15.8925259]
[1737122048304,10.9325259,220.08,219.95,4.96]
[1737122048604,10.9325259,220.08,219.97,4.5465]
[1737122048805,10.9325259,220.08,219.96,4.96]
[1737122049409,10.9325259,220.08,219.96,15.8925259]
[1737122049907,4.5451,220.05,220.0,4.546]
[1737122050207,10.9325259,220.08,219.96,15.8925259]
[1737122050409,4.5445,220.08,220.02,4.5457]
[1737122050703,10.9325259,220.11,220.0,10.9325259]
[1737122051106,4.5442,220.1,220.05,4.545]
[1737122051702,4.5441,220.1,220.05,4.545]
[1737122051899,10.9325259,220.11,220.05,4.545]
[1737122052504,10.9325259,220.11,220.0,10.9325259]
[1737122052706,10.9325259,220.11,220.03,4.5453]
[1737122053505,4.5446,220.08,220.03,4.5453]
[1737122054011,4.5446,220.08,220.0,15.4784259]
[1737122054313,10.9325259,220.08,219.99,4.96]
[1737122054907,10.9325259,220.08,219.94,10.9325259]
[1737122055112,10.9325259,220.08,219.99,4.96]
[1737122055711,10.9325259,220.05,219.99,4.96]
[1737122055912,2.896,220.04,219.95,4.96]
[1737122056110,4.5462,220.0,219.95,4.96]
[1737122056514,4.3705,220.04,219.95,4.96]
[1737122056712,4.5464,219.99,219.95,4.96]
[1737122058310,4.3705,220.04,219.95,4.96]
[1737122058508,10.9325259,220.02,219.92,4.96]
[1737122059014,4.5474,219.94,219.92,4.96]
[1737122059213,10.9325259,219.99,219.9,4.96]
[1737122059619,4.5468,219.97,219.9,4.96]
[1737122059915,10.9325259,219.99,219.9,4.96]
[1737122060310,10.9325259,219.99,219.88,4.96]
[1737122060516,10.9325259,219.96,219.85,15.8925259]
[1737122060716,2.9356,219.95,219.85,15.8925259]
[1737122061120,4.5484,219.89,219.85,20.4417259]
[1737122062521,4.5481,219.91,219.86,4.5489]
[1737122062722,2.9356,219.95,219.86,4.5489]
[1737122063320,1.4745,220.04,219.92,10.9325259]
[1737122064119,4.5461,220.0,219.95,4.5469]
[1737122064318,4.5461,220.0,219.95,9.5069]
[1737122064725,4.5461,220.0,219.96,4.5469]
[1737122066927,1.4545,220.05,219.95,15.8925259]
[1737122067230,1.4545,220.05,219.98,10.9325259]
[1737122067427,4.545,220.06,220.01,4.5458]
[1737122067830,1.4604,220.09,220.01,10.9325259]
[1737122068225,1.4604,220.09,219.98,10.9325259]
[1737122068534,1.4604,220.09,219.95,4.96]
[1737122068832,1.4604,220.09,219.98,4.5465]
[1737122069033,1.4604,220.09,219.97,10.9325259]
[1737122069229,4.545,220.06,219.97,10.9325259]
[1737122069426,1.4604,220.09,219.97,10.9325259]
[1737122070335,1.4604,220.09,219.97,15.4792259]
[1737122070531,1.4604,220.09,219.97,10.9325259]
[1737122070732,1.5055,220.12,220.0,10.9325259]
[1737122070931,4.5446,220.07,220.0,10.9325259]
[1737122071231,2.9301,220.12,220.0,10.9325259]
[1737122072133,2.9301,220.12,220.01,4.5458]
[1737122072535,4.5451,220.05,220.01,4.5458]
[1737122074039,4.5452,220.05,220.0,4.546]
[1737122074233,10.9325259,220.1,220.0,4.546]
[1737122075136,10.9325259,220.1,219.98,4.5465]
[1737122075433,4.5452,220.05,219.98,4.5465]
[1737122075637,10.9325259,220.07,219.98,4.5465]
[1737122075837,10.9325259,220.1,219.97,10.9325259]
[1737122076039,4.545,220.06,219.97,10.9325259]
[1737122076239,4.545,220.06,220.02,4.5456]
[1737122076542,4.5446,220.08,219.97,10.9325259]
[1737122076740,2.9301,220.12,219.97,10.9325259]
[1737122077142,4.5445,220.08,219.97,10.9325259]
[1737122077540,2.9301,220.12,219.97,10.9325259]
[1737122077741,4.5447,220.07,220.03,4.5453]
[1737122077942,2.9301,220.12,220.03,4.5453]
[1737122078644,2.9301,220.12,219.97,10.9325259]
[1737122078846,2.9301,220.12,220.04,4.5452]
[1737122079248,10.9325259,220.1,219.96,4.96]
[1737122079548,4.5456,220.03,219.96,15.8925259]
[1737122080247,4.5457,220.02,219.98,4.5463]
[1737122080549,4.5457,220.02,219.96,15.8925259]
[1737122081247,4.5457,220.02,219.96,20.4394259]
[1737122082549,4.5461,220.01,219.96,4.96]
[1737122082849,10.9325259,220.07,219.96,4.96]
[1737122083046,4.5461,220.01,219.96,4.96]
[1737122083755,4.5455,220.04,219.98,4.5464]
[1737122084347,10.9325259,220.11,219.97,4.5467]
[1737122085245,4.5459,220.01,219.97,4.5467]
[1737122085543,10.9325259,220.11,219.99,4.5461]
[1737122085749,4.5456,220.03,219.99,4.5461]
[1737122085938,10.9325259,220.11,219.96,15.8925259]
[1737122086349,4.5459,220.02,219.98,4.5465]
[1737122086650,10.9325259,220.11,219.98,4.5465]
[1737122087246,4.5463,220.0,219.96,20.4392259]
[1737122087450,4.5463,220.0,219.96,9.5067]
[1737122087651,10.9325259,220.08,219.96,9.5067]
[1737122087852,4.5452,220.05,219.96,9.5067]
[1737122088053,10.9325259,220.08,219.96,9.5067]
[1737122088448,4.5463,220.0,219.96,9.5067]
[1737122088652,10.9325259,220.08,219.96,9.5067]
[1737122088952,10.9325259,220.08,219.96,4.96]
[1737122089147,10.9325259,220.05,219.91,4.96]
[1737122089348,1.4618,220.04,219.91,4.96]
[1737122089754,2.9862,220.03,219.91,4.96]
[1737122089950,2.9862,220.03,219.9,15.8925259]
[1737122090248,10.9325259,220.02,219.9,15.8925259]
[1737122091145,4.5478,219.92,219.9,15.8925259]
[1737122091350,4.5478,219.92,219.88,4.96]
[1737122091552,4.5479,219.91,219.88,4.96]
[1737122092049,4.5483,219.9,219.88,4.96]
[1737122093148,2.9862,220.03,219.91,4.5478]
[1737122093352,2.9862,220.03,219.93,10.9325259]
[1737122093753,4.5473,219.94,219.93,10.9325259]
[1737122094748,4.5473,219.94,219.9,4.5481]
[1737122094956,4.5478,219.92,219.91,10.9325259]
[1737122095247,10.9325259,220.02,219.88,15.8925259]
[1737122095752,4.5482,219.9,219.88,15.8925259]
[1737122096756,2.9862,220.03,219.88,15.8925259]
[1737122096953,2.9862,220.03,219.92,10.9325259]
[1737122098953,4.5473,219.95,219.92,10.9325259]
[1737122100452,4.5475,219.94,219.92,10.9325259]
[1737122100646,2.9862,220.03,219.89,10.9325259]
[1737122100856,10.9325259,220.02,219.89,10.9325259]
[1737122101257,4.5482,219.9,219.89,10.9325259]
[1737122102050,10.9325259,219.99,219.86,15.8925259]
[1737122102251,10.9325259,219.99,219.86,10.9325259]
[1737122102450,10.9325259,219.99,219.73,22.7431]
[1737122102451,10.9325259,219.93,219.8,15.4827259]
[1737122102651,10.9325259,219.93,219.8,10.9325259]
[1737122102652,4.5038,219.92,219.8,10.9325259]
[1737122103360,4.5498,219.82,219.8,10.9325259]
[1737122103954,4.5496,219.84,219.8,10.9325259]
[1737122104352,4.5038,219.92,219.78,4.5505]
[1737122104554,4.5038,219.92,219.82,4.5498]
[1737122104758,3.0039,219.92,219.84,10.9325259]
[1737122104955,3.0039,219.92,219.84,15.8925259]
[1737122106458,4.548,219.91,219.86,4.5488]
[1737122106655,3.0039,219.92,219.69,85.12]
[1737122106862,3.0039,219.92,219.78,10.9325259]
[1737122106863,13.9364259,219.92,219.78,10.9325259]
[1737122107058,1.4154,219.91,219.78,10.9325259]
[1737122107253,1.4154,219.91,219.81,10.9325259]
[1737122107458,4.5483,219.9,219.82,4.5498]
[1737122107754,3.0039,219.92,219.84,10.9325259]
[1737122108152,7.5518,219.92,219.85,4.5491]
[1737122108460,3.0039,219.92,219.85,4.5491]
[1737122108753,4.5482,219.9,219.83,4.5494]
[1737122108958,4.5482,219.9,219.85,10.9325259]
[1737122109150,10.9325259,219.98,219.85,10.9325259]
[1737122109761,248.33493492,220.11,219.97,225.9325259]
[1737122109956,206.50328611,220.11,220.08,4.5443]
[1737122110152,144.50328611,220.11,220.1,21.8650518]
[1737122110458,144.50328611,220.11,220.1,10.9325259]
[1737122110659,3.0328,220.26,220.09,5.28]
[1737122110660,10.9325259,220.23,220.09,5.28]
[1737122110860,10.9325259,220.17,220.03,10.9325259]
[1737122111059,4.5441,220.1,220.03,10.9325259]
[1737122111363,10.9325259,220.14,220.1,239.65427437]
[1737122111556,10.9325259,220.14,220.1,222.60897437]
[1737122111759,4.5438,220.11,220.1,50.22296528]
[1737122112062,4.5438,220.11,220.06,180.45464568]
[1737122112262,4.5438,220.11,220.07,6.28425023]
[1737122112459,3.0328,220.16,220.07,6.28425023]
[1737122112660,10.9325259,220.22,220.07,17.21677613]
[1737122113159,10.9325259,220.22,220.12,6.28425023]
[1737122113363,4.5426,220.17,220.12,6.28425023]
[1737122113657,4.5426,220.17,220.13,38.07032033]
[1737122113864,4.5421,220.2,220.13,38.07032033]
[1737122114058,17.44102853,220.28,220.13,38.07032033]
[1737122114259,17.44102853,220.28,220.16,6.28425023]
[1737122114856,17.44102853,220.33,220.16,6.28425023]
[1737122115162,1.4967,220.32,220.16,6.28425023]
[1737122115357,1.4967,220.32,220.18,6.28425023]
[1737122115559,4.5418,220.21,220.18,6.28425023]
[1737122115962,4.5418,220.21,220.17,6.28425023]
[1737122116568,1.4967,220.32,220.18,6.40055876]
[1737122116765,17.44102853,220.28,220.18,12.68480899]
[1737122117266,17.44102853,220.28,220.15,6.28425023]
[1737122117570,5.26,220.36,220.15,6.28425023]
[1737122117571,17.44102853,220.46,220.17,13.64]
[1737122117763,17.44102853,220.46,220.27,17.44102853]
[1737122117963,17.44102853,220.46,220.28,8.1883]
[1737122118266,17.44102853,220.42,220.28,8.1883]
[1737122118467,17.44102853,220.42,220.34,6.28425023]
[1737122118862,17.44102853,220.42,220.32,6.28425023]
[1737122119262,4.5393,220.33,220.32,6.28425023]
[1737122119671,17.44102853,220.42,220.31,6.28425023]
[1737122119964,17.44102853,220.46,220.31,6.28425023]
[1737122120266,17.44102853,220.46,220.34,56.50721551]
[1737122120668,17.44102853,220.46,220.36,56.50721551]
[1737122121261,4.539,220.35,220.33,6.28425023]
[1737122121663,17.44102853,220.46,220.34,30.01510978]
[1737122122561,4.4779,220.45,220.28,8.1883]
[1737122122765,4.5391,220.34,220.28,8.1883]
[1737122123265,4.5401,220.29,220.26,6.20809033]
[1737122123461,17.44102853,220.42,220.26,6.20809033]
[1737122124062,17.44102853,220.37,220.26,6.20809033]
[1737122124269,17.44102853,220.37,220.22,6.20809033]
[1737122124869,4.5413,220.23,220.22,6.20809033]
[1737122125269,1.4564,220.32,220.19,6.20809033]
[1737122126073,17.44102853,220.25,220.17,6.20809033]
[1737122126764,2.9749,220.31,220.15,2.8847]
[1737122127068,1.4564,220.32,220.18,17.44102853]
[1737122127270,1.4421,220.4,220.22,17.44102853]
[1737122127470,1.4421,220.4,220.23,5.34]
[1737122127871,4.5395,220.32,220.25,4.5409]
[1737122128467,4.5393,220.33,220.26,7.425]
[1737122128775,1.4421,220.4,220.26,2.8843]
[1737122129072,4.5396,220.32,220.26,2.8843]
[1737122129468,1.4421,220.4,220.26,2.8843]
[1737122129672,4.5393,220.34,220.26,7.425]
[1737122129873,1.4421,220.4,220.26,7.425]
[1737122130073,1.4421,220.4,220.26,2.8843]
[1737122130570,4.5399,220.31,220.26,2.8843]
[1737122130773,1.4421,220.4,220.27,11.55162062]
[1737122130970,17.44102853,220.37,220.27,11.55162062]
[1737122131172,4.5403,220.28,220.27,11.55162062]
[1737122131675,1.4382,220.36,220.26,2.8843]
[1737122131867,4.5405,220.27,220.26,2.8843]
[1737122132582,17.44102853,220.29,220.22,5.32]
[1737122132876,17.44102853,220.29,220.18,5.32]
[1737122133169,4.5422,220.19,220.18,5.32]
[1737122134276,17.44102853,220.25,220.14,3.0169]
[1737122134575,17.44102853,220.29,220.14,8.3369]
[1737122134776,17.44102853,220.29,220.14,12.8801]
[1737122135076,17.44102853,220.29,220.15,17.44102853]
[1737122135470,4.5417,220.22,220.15,17.44102853]
[1737122135872,17.44102853,220.29,220.16,4.5426]
[1737122136373,17.44102853,220.29,220.14,8.3369]
[1737122136374,4.5426,220.17,220.14,8.3369]
[1737122137279,4.5428,220.16,220.14,3.0169]
[1737122137472,17.44102853,220.25,220.14,1.4852]
[1737122137673,1.4567,220.24,220.14,1.4852]
[1737122138677,4.543,220.15,220.14,1.4852]
[1737122138977,17.44102853,220.21,220.07,1.4214]
[1737122139172,17.44102853,220.21,219.78,35.64322853]
[1737122139173,17.44102853,220.21,220.06,1.397]
[1737122139476,4.5438,220.12,220.07,9.8446]
[1737122140573,4.5438,220.12,220.08,4.5444]
[1737122140967,17.44102853,220.17,220.06,1.397]
[1737122141672,4.5445,220.08,220.06,1.397]
[1737122142979,17.44102853,220.17,220.06,1.397]
[1737122143180,17.44102853,220.17,220.05,24.90911658]
[1737122143568,17.44102853,220.17,220.05,6.20809033]
[1737122144180,1.5113,220.21,220.05,6.20809033]
[1737122144378,4.5427,220.17,220.06,11.22002906]
[1737122144579,1.5113,220.21,220.06,11.22002906]
[1737122145081,4.544,220.1,220.08,50.22296528]
[1737122145780,1.5113,220.21,220.09,43.8920624]
[1737122146479,4.544,220.1,220.09,43.8920624]
[1737122147080,4.544,220.1,220.08,6.26716203]
[1737122148379,1.5113,220.21,220.08,6.26716203]
[1737122148574,1.5113,220.21,220.07,25.0641389]
[1737122149681,1.5113,220.21,220.06,6.26716203]
[1737122150184,17.44102853,220.09,220.06,6.203e-05]
[1737122150477,4.5451,220.05,220.04,18.79760433]
[1737122150676,17.44102853,220.05,220.03,39.32860418]
[1737122150873,1.5423,220.08,220.03,39.32860418]
[1737122151079,17.44102853,220.11,220.03,39.32860418]
[1737122151475,17.44102853,220.11,219.96,1.4882]
[1737122151476,17.44102853,220.11,219.96,18.92922853]
[1737122151882,4.544,220.11,220.05,4.545]
[1737122153381,4.544,220.1,220.05,4.545]
[1737122154686,11.6402,220.0,219.96,18.92922853]
[1737122154882,4.544,220.1,219.97,5.26]
[1737122155187,4.5436,220.13,220.06,4.5448]
[1737122155382,17.44102853,220.15,220.06,4.5448]
[1737122155784,4.5438,220.11,220.05,4.545]
[1737122156787,4.5436,220.12,220.06,4.5448]
[1737122156987,1.4751,220.21,220.0,17.44102853]
[1737122157187,2.9709,220.21,220.0,17.44102853]
[1737122157488,2.9709,220.21,220.04,17.44102853]
[1737122157788,2.9709,220.21,220.05,1.4083]
[1737122158082,2.9709,220.21,220.1,4.544]
[1737122158492,4.543,220.16,220.1,4.544]
[1737122158687,2.9709,220.21,220.1,4.544]
[1737122158891,2.9709,220.21,220.09,4.5442]
[1737122159091,17.44102853,220.18,220.07,5.24]
[1737122159592,2.9709,220.21,220.05,1.4083]
[1737122159593,17.44102853,220.14,220.05,1.4083]
[1737122159989,17.44102853,220.14,220.01,1.5275]
[1737122161093,17.44102853,220.1,219.97,1.4083]
[1737122161291,4.546,220.01,219.97,1.4083]
[1737122162696,1.5476,220.12,219.97,1.4083]
[1737122162896,1.5476,220.12,219.97,18.84932853]
[1737122163392,4.5448,220.07,220.02,4.5457]
[1737122163989,1.4753,220.13,220.02,4.5457]
[1737122164686,4.5449,220.06,219.97,18.84932853]
[1737122164986,4.5449,220.06,220.01,4.5458]
[1737122165996,4.5449,220.06,220.02,4.5456]
[1737122166697,1.4753,220.13,219.97,18.84932853]
[1737122166895,17.44102853,220.14,219.97,18.84932853]
[1737122167095,2.9158,220.17,219.97,18.84932853]
[1737122167295,4.544,220.1,220.01,17.44102853]
[1737122167794,4.5438,220.12,220.08,4.5444]
[1737122167998,17.44102853,220.18,220.08,4.5444]
[1737122168191,17.44102853,220.18,220.04,5.2]
[1737122168393,17.44102853,220.18,220.05,2.9826]
[1737122168795,4.5434,220.13,220.09,4.5442]
[1737122169292,17.44102853,220.18,220.09,4.5442]
[1737122169504,4.5436,220.12,220.09,4.5442]
[1737122169700,17.44102853,220.18,220.09,4.5442]
[1737122170001,17.44102853,220.18,220.11,4.5438]
[1737122170302,17.44102853,220.18,220.06,1.4457]
[1737122170495,4.5432,220.14,220.11,4.5438]
[1737122170691,1.4171,220.21,220.11,4.5438]
[1737122171195,1.4171,220.21,220.06,1.4457]
[1737122171498,1.4171,220.21,220.05,2.9826]
[1737122171499,17.44102853,220.18,220.05,2.9826]
[1737122171801,17.44102853,220.18,220.06,4.5448]
[1737122172000,17.44102853,220.14,220.05,1.4494]
[1737122172400,4.5444,220.09,220.05,5.9944]
[1737122173400,4.544,220.1,220.06,4.5447]
[1737122175704,4.5443,220.09,220.05,4.545]